[Event "*** SCC Grand Prix: Titled Tuesday Blitz"]
[Site "Chess.com"]
[Date "2020.09.08"]
[Round "8"]
[White "GMHess"]
[Black "Msb2"]
[Result "1-0"]
[WhiteElo "2776"]
[BlackElo "2880"]
[TimeControl "180+1"]
[EndTime "11:37:30 PDT"]
[Termination "GMHess won by resignation"]

1. d4 {[%clk 0:02:58.6]} 1... Nf6 {[%clk 0:02:59.2]} 2. c4 {[%clk 0:02:58.9]}
2... e6 {[%clk 0:02:59.5]} 3. Nc3 {[%clk 0:02:57.8]} 3... Bb4 {[%clk 0:02:59.1]}
4. Qc2 {[%clk 0:02:57.4]} 4... d5 {[%clk 0:02:59.2]} 5. a3 {[%clk 0:02:57.1]}
5... Bxc3+ {[%clk 0:02:56.5]} 6. Qxc3 {[%clk 0:02:58]} 6... dxc4 {[%clk
0:02:53.7]} 7. Qxc4 {[%clk 0:02:54.3]} 7... b6 {[%clk 0:02:54.2]} 8. Nf3 {[%clk
0:02:50.3]} 8... Ba6 {[%clk 0:02:53]} 9. Qa4+ {[%clk 0:02:50.3]} 9... Qd7 {[%clk
0:02:53.5]} 10. Qc2 {[%clk 0:02:48.2]} 10... h6 {[%clk 0:02:54]} 11. Bf4 {[%clk
0:02:35.8]} 11... O-O {[%clk 0:02:51.2]} 12. Be5 {[%clk 0:02:04.3]} 12... Rc8
{[%clk 0:02:22.2]} 13. g3 {[%clk 0:01:53.8]} 13... c5 {[%clk 0:02:16.2]} 14.
Bxf6 {[%clk 0:01:54.2]} 14... gxf6 {[%clk 0:02:15.8]} 15. Bg2 {[%clk 0:01:36]}
15... Bb7 {[%clk 0:02:10.5]} 16. Qd2 {[%clk 0:01:35.4]} 16... Kg7 {[%clk
0:02:02.9]} 17. O-O {[%clk 0:01:18.1]} 17... cxd4 {[%clk 0:02:03.1]} 18. Rfd1
{[%clk 0:01:18]} 18... e5 {[%clk 0:01:54.7]} 19. e3 {[%clk 0:01:13]} 19... d3
{[%clk 0:01:24.4]} 20. Qxd3 {[%clk 0:01:09.8]} 20... Qxd3 {[%clk 0:01:19.2]} 21.
Rxd3 {[%clk 0:01:10.7]} 21... Na6 {[%clk 0:01:20.1]} 22. Nh4 {[%clk 0:00:50.9]}
22... Bxg2 {[%clk 0:01:19.1]} 23. Kxg2 {[%clk 0:00:51.8]} 23... Nc5 {[%clk
0:01:17.6]} 24. Rd2 {[%clk 0:00:26.7]} 24... Nb3 {[%clk 0:01:14.2]} 25. Rad1
{[%clk 0:00:26.9]} 25... Nxd2 {[%clk 0:01:14.2]} 26. Rxd2 {[%clk 0:00:27.8]}
26... Rd8 {[%clk 0:01:13.4]} 27. Re2 {[%clk 0:00:23.5]} 27... h5 {[%clk
0:01:01.2]} 28. Kf3 {[%clk 0:00:15.3]} 28... Rac8 {[%clk 0:00:59.7]} 29. Nf5+
{[%clk 0:00:15.4]} 29... Kf8 {[%clk 0:00:59.9]} 30. e4 {[%clk 0:00:12.6]} 30...
Rd3+ {[%clk 0:00:59.1]} 31. Ne3 {[%clk 0:00:12.5]} 31... Rc1 {[%clk 0:00:57.5]}
32. h4 {[%clk 0:00:09.9]} 32... Ke7 {[%clk 0:00:56.6]} 33. Kg2 {[%clk
0:00:08.1]} 33... Ke6 {[%clk 0:00:57.1]} 34. Nf5 {[%clk 0:00:07.4]} 34... Kd7
{[%clk 0:00:44.8]} 35. Ng7 {[%clk 0:00:07.6]} 35... Rcd1 {[%clk 0:00:45.4]} 36.
Nxh5 {[%clk 0:00:07.4]} 36... R1d2 {[%clk 0:00:46]} 37. Re1 {[%clk 0:00:04]}
37... Rxb2 {[%clk 0:00:45.5]} 38. Nxf6+ {[%clk 0:00:04.2]} 38... Ke6 {[%clk
0:00:46]} 39. Ng4 {[%clk 0:00:04.6]} 39... Rxa3 {[%clk 0:00:27.4]} 40. Rc1
{[%clk 0:00:04.3]} 40... Rd3 {[%clk 0:00:26.3]} 41. Rc6+ {[%clk 0:00:03.1]}
41... Rd6 {[%clk 0:00:26.3]} 42. Rc8 {[%clk 0:00:02.5]} 42... f5 {[%clk
0:00:24.7]} 43. exf5+ {[%clk 0:00:02.3]} 43... Kxf5 {[%clk 0:00:25.6]} 44. Ne3+
{[%clk 0:00:02.8]} 44... Ke6 {[%clk 0:00:04.9]} 45. Nc4 {[%clk 0:00:03.3]} 45...
Rdd2 {[%clk 0:00:05.7]} 46. Nxb2 {[%clk 0:00:02.9]} 46... Rxb2 {[%clk
0:00:05.5]} 47. h5 {[%clk 0:00:03.3]} 47... Kf6 {[%clk 0:00:05.6]} 48. Rc6+
{[%clk 0:00:03.1]} 48... Kg5 {[%clk 0:00:05.5]} 49. h6 {[%clk 0:00:02.7]} 49...
Rd2 {[%clk 0:00:05.5]} 50. h7 {[%clk 0:00:02.8]} 50... Rd8 {[%clk 0:00:05.9]}
51. Rc7 {[%clk 0:00:03.3]} 51... a5 {[%clk 0:00:05.4]} 52. Rg7+ {[%clk
0:00:03.5]} 52... Kh6 {[%clk 0:00:01.4]} 53. Rg8 {[%clk 0:00:04.4]} 53... Kxh7
{[%clk 0:00:02.3]} 54. Rxd8 {[%clk 0:00:04.4]} 54... a4 {[%clk 0:00:03.2]} 55.
Rd7+ {[%clk 0:00:05]} 55... Kg6 {[%clk 0:00:03]} 56. Rd6+ {[%clk 0:00:05.3]}
56... Kf5 {[%clk 0:00:03.9]} 57. Rxb6 {[%clk 0:00:06.2]} 57... e4 {[%clk
0:00:04]} 58. Ra6 {[%clk 0:00:06.8]} 58... Kg4 {[%clk 0:00:04.9]} 59. Rxa4
{[%clk 0:00:06.7]} 59... Kg5 {[%clk 0:00:05.8]} 60. Rxe4 {[%clk 0:00:06.6]}
60... Kf6 {[%clk 0:00:06.7]} 1-0

[Event "*** SCC Grand Prix: Titled Tuesday Blitz"]
[Site "Chess.com"]
[Date "2020.09.08"]
[Round "8"]
[White "champ1000"]
[Black "CzechmVIII"]
[Result "1-0"]
[WhiteElo "2295"]
[BlackElo "2173"]
[TimeControl "180+1"]
[EndTime "11:37:34 PDT"]
[Termination "champ1000 won on time"]

1. d4 {[%clk 0:03:00.9]} 1... Nf6 {[%clk 0:02:59.4]} 2. c4 {[%clk 0:02:58.6]}
2... c5 {[%clk 0:02:59.4]} 3. d5 {[%clk 0:02:44.4]} 3... b5 {[%clk 0:02:59.3]}
4. cxb5 {[%clk 0:02:39.5]} 4... a6 {[%clk 0:02:59.1]} 5. Nc3 {[%clk 0:02:38.7]}
5... axb5 {[%clk 0:02:56.8]} 6. Nxb5 {[%clk 0:02:39]} 6... Ba6 {[%clk
0:02:50.2]} 7. Nc3 {[%clk 0:02:37.3]} 7... g6 {[%clk 0:02:42.4]} 8. g3 {[%clk
0:02:28]} 8... d6 {[%clk 0:02:37.5]} 9. Bg2 {[%clk 0:02:28.3]} 9... Bg7 {[%clk
0:02:37.7]} 10. Nf3 {[%clk 0:02:28.6]} 10... Nbd7 {[%clk 0:02:36.6]} 11. O-O
{[%clk 0:02:29]} 11... Nb6 {[%clk 0:02:36.5]} 12. Re1 {[%clk 0:02:28.2]} 12...
O-O {[%clk 0:02:26.3]} 13. e4 {[%clk 0:02:27.5]} 13... Nc4 {[%clk 0:02:23.4]}
14. b3 {[%clk 0:02:26]} 14... Nd7 {[%clk 0:02:16.8]} 15. Qc2 {[%clk 0:02:20]}
15... Qa5 {[%clk 0:02:12.4]} 16. bxc4 {[%clk 0:01:57.6]} 16... Qxc3 {[%clk
0:01:54.2]} 17. Qxc3 {[%clk 0:01:55.7]} 17... Bxc3 {[%clk 0:01:54.1]} 18. Bh6
{[%clk 0:01:56.6]} 18... Rfb8 {[%clk 0:01:46.7]} 19. Rac1 {[%clk 0:01:56.7]}
19... Bxe1 {[%clk 0:01:46.6]} 20. Nxe1 {[%clk 0:01:57.6]} 20... Ne5 {[%clk
0:01:19.5]} 21. Bf1 {[%clk 0:01:50.7]} 21... Rb4 {[%clk 0:01:18.9]} 22. Nc2
{[%clk 0:01:36]} 22... Rb2 {[%clk 0:01:09]} 23. Ne3 {[%clk 0:01:34]} 23... Rxa2
{[%clk 0:00:56.3]} 24. Bf4 {[%clk 0:01:27.2]} 24... Bc8 {[%clk 0:00:50.1]} 25.
Bxe5 {[%clk 0:01:22.8]} 25... dxe5 {[%clk 0:00:50.3]} 26. Kg2 {[%clk 0:00:41]}
26... Rb2 {[%clk 0:00:45.6]} 27. Rc2 {[%clk 0:00:35.9]} 27... Rxc2 {[%clk
0:00:44.9]} 28. Nxc2 {[%clk 0:00:36.8]} 28... Ra4 {[%clk 0:00:41.1]} 29. Ne3
{[%clk 0:00:36.1]} 29... Ba6 {[%clk 0:00:40]} 30. g4 {[%clk 0:00:33.8]} 30... h6
{[%clk 0:00:39.6]} 31. h3 {[%clk 0:00:26.1]} 31... Kf8 {[%clk 0:00:39.8]} 32.
Be2 {[%clk 0:00:22.4]} 32... Ke8 {[%clk 0:00:35.6]} 33. Kg3 {[%clk 0:00:17.4]}
33... g5 {[%clk 0:00:29.7]} 34. Bf1 {[%clk 0:00:15.9]} 34... Kd8 {[%clk
0:00:28.3]} 35. h4 {[%clk 0:00:12.8]} 35... Bc8 {[%clk 0:00:19.2]} 36. h5 {[%clk
0:00:12.7]} 36... Kc7 {[%clk 0:00:17.2]} 37. Be2 {[%clk 0:00:12]} 37... Kb6
{[%clk 0:00:17]} 38. Kf3 {[%clk 0:00:12]} 38... Ka5 {[%clk 0:00:17]} 39. Bd3
{[%clk 0:00:10.7]} 39... Ba6 {[%clk 0:00:16.1]} 40. Nf5 {[%clk 0:00:09.4]} 40...
Bxc4 {[%clk 0:00:15.7]} 41. Bxc4 {[%clk 0:00:09.6]} 41... Rxc4 {[%clk
0:00:15.9]} 42. Nxh6 {[%clk 0:00:10.5]} 42... Rc3+ {[%clk 0:00:16.3]} 43. Kg2
{[%clk 0:00:10.5]} 43... Rb3 {[%clk 0:00:16.7]} 44. Nxf7 {[%clk 0:00:10.8]}
44... Rb8 {[%clk 0:00:16.5]} 45. Nxe5 {[%clk 0:00:10.5]} 45... Rh8 {[%clk
0:00:14.5]} 46. Nf7 {[%clk 0:00:09.6]} 46... Rh7 {[%clk 0:00:11.2]} 47. Nxg5
{[%clk 0:00:10]} 47... Rg7 {[%clk 0:00:11.6]} 48. f4 {[%clk 0:00:10.4]} 48... c4
{[%clk 0:00:11]} 49. h6 {[%clk 0:00:10.9]} 49... Rg6 {[%clk 0:00:07.7]} 50. h7
{[%clk 0:00:05.6]} 50... Rh6 {[%clk 0:00:08]} 51. d6 {[%clk 0:00:05.3]} 51...
exd6 {[%clk 0:00:07.4]} 52. f5 {[%clk 0:00:05.8]} 52... c3 {[%clk 0:00:07.9]}
53. f6 {[%clk 0:00:06]} 53... c2 {[%clk 0:00:08.3]} 54. f7 {[%clk 0:00:06.6]}
54... c1=Q {[%clk 0:00:08.4]} 55. f8=Q {[%clk 0:00:07.2]} 55... Qd2+ {[%clk
0:00:08.6]} 56. Kg3 {[%clk 0:00:06.6]} 56... Qe3+ {[%clk 0:00:08.5]} 57. Nf3
{[%clk 0:00:06.6]} 57... Qc5 {[%clk 0:00:06]} 58. Qxh6 {[%clk 0:00:06.5]} 58...
Kb4 {[%clk 0:00:05.3]} 59. Qd2+ {[%clk 0:00:06.2]} 59... Kb5 {[%clk 0:00:04.4]}
60. h8=Q {[%clk 0:00:06.7]} 60... Kc6 {[%clk 0:00:04.8]} 61. Qhd4 {[%clk
0:00:06.7]} 61... Kd7 {[%clk 0:00:05]} 62. Qxc5 {[%clk 0:00:06.5]} 1-0

[Event "*** SCC Grand Prix: Titled Tuesday Blitz"]
[Site "Chess.com"]
[Date "2020.09.08"]
[Round "8"]
[White "chessmadara"]
[Black "Kotofeyca"]
[Result "1/2-1/2"]
[WhiteElo "1977"]
[BlackElo "2352"]
[TimeControl "180+1"]
[EndTime "11:37:36 PDT"]
[Termination "Game drawn by repetition"]

1. e4 {[%clk 0:03:00.9]} 1... c5 {[%clk 0:02:59.3]} 2. Nf3 {[%clk 0:03:00.4]}
2... d6 {[%clk 0:02:59.9]} 3. d4 {[%clk 0:03:00.3]} 3... cxd4 {[%clk 0:03:00.8]}
4. Nxd4 {[%clk 0:03:01.1]} 4... Nf6 {[%clk 0:03:01.4]} 5. Nc3 {[%clk 0:03:01.2]}
5... a6 {[%clk 0:03:02]} 6. Be2 {[%clk 0:03:01.7]} 6... e5 {[%clk 0:03:02.3]} 7.
Nf3 {[%clk 0:03:01.6]} 7... h6 {[%clk 0:03:01.7]} 8. a4 {[%clk 0:03:00.3]} 8...
Be6 {[%clk 0:02:54.3]} 9. O-O {[%clk 0:02:55.8]} 9... Nc6 {[%clk 0:02:54.3]} 10.
Nd2 {[%clk 0:02:54.5]} 10... d5 {[%clk 0:02:51.5]} 11. exd5 {[%clk 0:02:54]}
11... Nxd5 {[%clk 0:02:52.1]} 12. Nde4 {[%clk 0:02:49.2]} 12... Be7 {[%clk
0:02:38.8]} 13. Nxd5 {[%clk 0:02:43.9]} 13... Bxd5 {[%clk 0:02:38.8]} 14. Nc3
{[%clk 0:02:44.4]} 14... Be6 {[%clk 0:02:36.6]} 15. Be3 {[%clk 0:02:43.6]} 15...
O-O {[%clk 0:02:30.6]} 16. a5 {[%clk 0:02:42.6]} 16... Bb4 {[%clk 0:02:17.1]}
17. Bb6 {[%clk 0:02:39.9]} 17... Qxd1 {[%clk 0:02:11.9]} 18. Nxd1 {[%clk
0:02:39.8]} 18... Nd4 {[%clk 0:01:40.3]} 19. Bd3 {[%clk 0:02:39.8]} 19... Be7
{[%clk 0:01:14.5]} 20. Be4 {[%clk 0:02:37.8]} 20... Nc6 {[%clk 0:01:10.7]} 21.
c3 {[%clk 0:02:36.6]} 21... f5 {[%clk 0:01:09.2]} 22. Bc2 {[%clk 0:02:36.2]}
22... Bd8 {[%clk 0:01:02.8]} 23. Bc5 {[%clk 0:02:34.6]} 23... Re8 {[%clk
0:00:59]} 24. b4 {[%clk 0:02:33.6]} 24... Bc4 {[%clk 0:00:51.8]} 25. Re1 {[%clk
0:02:33.7]} 25... Bg5 {[%clk 0:00:52.3]} 26. Ne3 {[%clk 0:02:23.3]} 26... Bxe3
{[%clk 0:00:44.2]} 27. Rxe3 {[%clk 0:02:24.2]} 27... g6 {[%clk 0:00:33.4]} 28.
Bb6 {[%clk 0:02:10.5]} 28... Kf7 {[%clk 0:00:26.4]} 29. Ba4 {[%clk 0:02:10.2]}
29... Re6 {[%clk 0:00:19.9]} 30. Rd1 {[%clk 0:02:04.9]} 30... Rae8 {[%clk
0:00:18.7]} 31. Bc5 {[%clk 0:02:02.3]} 31... Rd8 {[%clk 0:00:15.8]} 32. Ree1
{[%clk 0:01:58.2]} 32... Rxd1 {[%clk 0:00:15.2]} 33. Rxd1 {[%clk 0:01:58.3]}
33... Ke8 {[%clk 0:00:15.1]} 34. Bb6 {[%clk 0:01:53.8]} 34... Re7 {[%clk
0:00:14.3]} 35. Rd8+ {[%clk 0:01:51.1]} 35... Kf7 {[%clk 0:00:13.9]} 36. Rd6
{[%clk 0:01:44.5]} 36... Re6 {[%clk 0:00:13.4]} 37. Rd7+ {[%clk 0:01:44.7]}
37... Re7 {[%clk 0:00:13.6]} 38. Rd6 {[%clk 0:01:42.9]} 38... Re6 {[%clk
0:00:13.9]} 39. Rd2 {[%clk 0:01:43.2]} 39... Re7 {[%clk 0:00:14]} 40. h3 {[%clk
0:01:42.4]} 40... Ke8 {[%clk 0:00:14.2]} 41. Rd8+ {[%clk 0:01:40.7]} 41... Kf7
{[%clk 0:00:14.1]} 42. Rd6 {[%clk 0:01:39.7]} 42... Re6 {[%clk 0:00:14.5]} 43.
Rd7+ {[%clk 0:01:36.9]} 43... Re7 {[%clk 0:00:14.7]} 44. Rd2 {[%clk 0:01:36.9]}
44... g5 {[%clk 0:00:15]} 45. Bc5 {[%clk 0:01:36.4]} 45... Re8 {[%clk
0:00:14.1]} 46. Rd6 {[%clk 0:01:34.8]} 46... Rd8 {[%clk 0:00:11.5]} 47. Rxh6
{[%clk 0:01:20.1]} 47... Kg7 {[%clk 0:00:11.2]} 48. Rd6 {[%clk 0:01:12.2]} 48...
Rxd6 {[%clk 0:00:11.3]} 49. Bxd6 {[%clk 0:01:12.3]} 49... Kf6 {[%clk 0:00:12.2]}
50. f3 {[%clk 0:01:04.5]} 50... Ke6 {[%clk 0:00:12.7]} 51. Bc5 {[%clk
0:01:03.9]} 51... Kd5 {[%clk 0:00:13]} 52. Bb6 {[%clk 0:00:59.5]} 52... e4
{[%clk 0:00:13]} 53. fxe4+ {[%clk 0:00:57.3]} 53... fxe4 {[%clk 0:00:13.9]} 54.
Kf2 {[%clk 0:00:57.5]} 54... Ne5 {[%clk 0:00:13.9]} 55. Bc2 {[%clk 0:00:52.3]}
55... Bd3 {[%clk 0:00:13.5]} 56. Bb3+ {[%clk 0:00:50.9]} 56... Nc4 {[%clk
0:00:13.6]} 57. Bxc4+ {[%clk 0:00:49.1]} 57... Kxc4 {[%clk 0:00:14.5]} 58. Bd4
{[%clk 0:00:49.7]} 58... Kd5 {[%clk 0:00:13.2]} 59. Ke3 {[%clk 0:00:49.9]} 59...
Bf1 {[%clk 0:00:13.3]} 60. Kf2 {[%clk 0:00:48.8]} 60... Bb5 {[%clk 0:00:13.6]}
61. g3 {[%clk 0:00:48.7]} 61... Ke6 {[%clk 0:00:13.7]} 62. Ke3 {[%clk
0:00:48.7]} 62... Kf5 {[%clk 0:00:13.5]} 63. g4+ {[%clk 0:00:46.5]} 63... Kg6
{[%clk 0:00:13.7]} 64. Kxe4 {[%clk 0:00:46.7]} 64... Bf1 {[%clk 0:00:14.4]} 65.
Kf3 {[%clk 0:00:45.3]} 65... Bxh3 {[%clk 0:00:14.1]} 66. Kg3 {[%clk 0:00:43.8]}
66... Bf1 {[%clk 0:00:13.6]} 67. Kf3 {[%clk 0:00:43.2]} 67... Bc4 {[%clk
0:00:14.5]} 68. Ke3 {[%clk 0:00:43.1]} 68... Be6 {[%clk 0:00:14.5]} 69. Kf3
{[%clk 0:00:42.8]} 69... Bd5+ {[%clk 0:00:15.4]} 70. Ke3 {[%clk 0:00:42.7]}
70... Be6 {[%clk 0:00:15.7]} 71. Kf3 {[%clk 0:00:43.2]} 71... Bd5+ {[%clk
0:00:16.3]} 72. Ke3 {[%clk 0:00:39.6]} 72... Be6 {[%clk 0:00:16.2]} 1/2-1/2

[Event "*** SCC Grand Prix: Titled Tuesday Blitz"]
[Site "Chess.com"]
[Date "2020.09.08"]
[Round "8"]
[White "Yoshikrov"]
[Black "The_Machine04"]
[Result "1/2-1/2"]
[WhiteElo "2108"]
[BlackElo "2266"]
[TimeControl "180+1"]
[EndTime "11:37:36 PDT"]
[Termination "Game drawn by stalemate"]

1. e4 {[%clk 0:03:00.9]} 1... d6 {[%clk 0:02:55.6]} 2. d4 {[%clk 0:02:59.7]}
2... Nf6 {[%clk 0:02:55.3]} 3. Nc3 {[%clk 0:02:57.9]} 3... e5 {[%clk 0:02:55.3]}
4. dxe5 {[%clk 0:02:56.1]} 4... dxe5 {[%clk 0:02:56.2]} 5. Qxd8+ {[%clk
0:02:55.3]} 5... Kxd8 {[%clk 0:02:57.1]} 6. Nf3 {[%clk 0:02:55.4]} 6... Bd6
{[%clk 0:02:56.4]} 7. Bg5 {[%clk 0:02:50.7]} 7... Be6 {[%clk 0:02:45.7]} 8.
O-O-O {[%clk 0:02:50.6]} 8... Nd7 {[%clk 0:02:44]} 9. Nd5 {[%clk 0:02:26.3]}
9... Bxd5 {[%clk 0:02:34.1]} 10. Rxd5 {[%clk 0:02:22]} 10... h6 {[%clk 0:02:34]}
11. Bxf6+ {[%clk 0:02:06.9]} 11... Nxf6 {[%clk 0:02:34.9]} 12. Rb5 {[%clk
0:02:03.5]} 12... a6 {[%clk 0:01:29.2]} 13. Rxb7 {[%clk 0:01:57.5]} 13... Nxe4
{[%clk 0:01:25.8]} 14. Bc4 {[%clk 0:01:52.6]} 14... Nc5 {[%clk 0:01:10.2]} 15.
Bd5 {[%clk 0:01:36.5]} 15... Nxb7 {[%clk 0:01:00.6]} 16. Bxb7 {[%clk 0:01:36.6]}
16... Rb8 {[%clk 0:01:01.1]} 17. Bxa6 {[%clk 0:01:37]} 17... Ra8 {[%clk
0:01:01.4]} 18. Bc4 {[%clk 0:01:36.2]} 18... Ke7 {[%clk 0:01:00.9]} 19. Rd1
{[%clk 0:01:36.1]} 19... Rhb8 {[%clk 0:00:56.3]} 20. c3 {[%clk 0:01:33.3]} 20...
Ra4 {[%clk 0:00:36.3]} 21. Bb3 {[%clk 0:01:29.3]} 21... Rg4 {[%clk 0:00:33.9]}
22. g3 {[%clk 0:01:26.2]} 22... Rg6 {[%clk 0:00:33.8]} 23. Nd2 {[%clk 0:01:14]}
23... f5 {[%clk 0:00:27.7]} 24. Re1 {[%clk 0:01:10.7]} 24... h5 {[%clk
0:00:12.9]} 25. Nf3 {[%clk 0:01:09]} 25... Kf6 {[%clk 0:00:11.2]} 26. Bc2 {[%clk
0:01:07.5]} 26... Rh6 {[%clk 0:00:10.6]} 27. Nh4 {[%clk 0:01:06.8]} 27... g6
{[%clk 0:00:10.6]} 28. Ng2 {[%clk 0:00:57.5]} 28... Rhh8 {[%clk 0:00:10.4]} 29.
Ne3 {[%clk 0:00:57.6]} 29... c6 {[%clk 0:00:07.6]} 30. Nc4 {[%clk 0:00:57.4]}
30... Bc7 {[%clk 0:00:07.3]} 31. Ba4 {[%clk 0:00:52.9]} 31... Ra8 {[%clk
0:00:04.1]} 32. b3 {[%clk 0:00:50.3]} 32... Ra6 {[%clk 0:00:02.8]} 33. Kb2
{[%clk 0:00:46.5]} 33... Rd8 {[%clk 0:00:02.9]} 34. Kc2 {[%clk 0:00:44.7]} 34...
e4 {[%clk 0:00:02.9]} 35. Ne3 {[%clk 0:00:44.2]} 35... Bb6 {[%clk 0:00:02.5]}
36. Re2 {[%clk 0:00:30.6]} 36... Bxe3 {[%clk 0:00:02.6]} 37. fxe3 {[%clk
0:00:31.5]} 37... c5 {[%clk 0:00:03.2]} 38. c4 {[%clk 0:00:29.7]} 38... Rad6
{[%clk 0:00:03.3]} 39. a3 {[%clk 0:00:24.5]} 39... Ke5 {[%clk 0:00:04.2]} 40. b4
{[%clk 0:00:24.1]} 40... g5 {[%clk 0:00:03.9]} 41. bxc5 {[%clk 0:00:23.4]} 41...
Ra6 {[%clk 0:00:04.1]} 42. Bb5 {[%clk 0:00:20.2]} 42... Rxa3 {[%clk 0:00:04]}
43. Kb2 {[%clk 0:00:19.9]} 43... Rad3 {[%clk 0:00:03.7]} 44. c6 {[%clk
0:00:19.3]} 44... Rd2+ {[%clk 0:00:03.8]} 45. Rxd2 {[%clk 0:00:19.8]} 45...
Rxd2+ {[%clk 0:00:04.3]} 46. Kc3 {[%clk 0:00:20.3]} 46... Ra2 {[%clk 0:00:02]}
47. c7 {[%clk 0:00:17.4]} 47... Ra8 {[%clk 0:00:02.6]} 48. Bd7 {[%clk
0:00:17.8]} 48... f4 {[%clk 0:00:01.9]} 49. gxf4+ {[%clk 0:00:17.1]} 49... gxf4
{[%clk 0:00:02.8]} 50. c8=Q {[%clk 0:00:17.3]} 50... Rxc8 {[%clk 0:00:02.4]} 51.
Bxc8 {[%clk 0:00:18.2]} 51... fxe3 {[%clk 0:00:01.9]} 52. c5 {[%clk 0:00:15.8]}
52... Kd5 {[%clk 0:00:01.8]} 53. c6 {[%clk 0:00:14.5]} 53... Kxc6 {[%clk
0:00:01.9]} 54. Bf5 {[%clk 0:00:14.5]} 54... Kd5 {[%clk 0:00:01.9]} 55. Bg6
{[%clk 0:00:15]} 55... Ke5 {[%clk 0:00:02.3]} 56. Bxh5 {[%clk 0:00:15.4]} 56...
Kf4 {[%clk 0:00:03.2]} 57. h3 {[%clk 0:00:14.3]} 57... Kg5 {[%clk 0:00:03.6]}
58. Bg4 {[%clk 0:00:14.6]} 58... Kh4 {[%clk 0:00:04.5]} 59. Kd4 {[%clk
0:00:14.4]} 59... Kg5 {[%clk 0:00:05.4]} 60. Kxe3 {[%clk 0:00:14.4]} 60... Kh6
{[%clk 0:00:06.3]} 61. Kxe4 {[%clk 0:00:14.7]} 61... Kg7 {[%clk 0:00:07.2]} 62.
Kf5 {[%clk 0:00:14.5]} 62... Kh8 {[%clk 0:00:08.1]} 63. Bf3 {[%clk 0:00:14.5]}
63... Kg8 {[%clk 0:00:09]} 64. Kg6 {[%clk 0:00:15.1]} 64... Kh8 {[%clk
0:00:09.9]} 65. h4 {[%clk 0:00:16]} 65... Kg8 {[%clk 0:00:10.8]} 66. h5 {[%clk
0:00:16.9]} 66... Kh8 {[%clk 0:00:11.7]} 67. h6 {[%clk 0:00:17.8]} 67... Kg8
{[%clk 0:00:12.6]} 68. h7+ {[%clk 0:00:18.7]} 68... Kh8 {[%clk 0:00:13.5]} 69.
Bd5 {[%clk 0:00:19]} 1/2-1/2

[Event "*** SCC Grand Prix: Titled Tuesday Blitz"]
[Site "Chess.com"]
[Date "2020.09.08"]
[Round "8"]
[White "KarstenHansch"]
[Black "Xeslu"]
[Result "1-0"]
[WhiteElo "2477"]
[BlackElo "2323"]
[TimeControl "180+1"]
[EndTime "11:37:39 PDT"]
[Termination "KarstenHansch won on time"]

1. e4 {[%clk 0:03:00.9]} 1... c5 {[%clk 0:02:59.1]} 2. Nf3 {[%clk 0:03:01.2]}
2... Nc6 {[%clk 0:02:59.2]} 3. Bb5 {[%clk 0:03:01.2]} 3... g6 {[%clk 0:02:58.2]}
4. O-O {[%clk 0:03:00.5]} 4... Bg7 {[%clk 0:02:54.3]} 5. Re1 {[%clk 0:03:00.8]}
5... Nf6 {[%clk 0:02:53.5]} 6. e5 {[%clk 0:03:01.3]} 6... Nd5 {[%clk 0:02:53.6]}
7. Nc3 {[%clk 0:03:01.7]} 7... Nc7 {[%clk 0:02:53.7]} 8. Bxc6 {[%clk 0:03:02]}
8... dxc6 {[%clk 0:02:52.4]} 9. Ne4 {[%clk 0:03:01.6]} 9... Ne6 {[%clk
0:02:52.7]} 10. d3 {[%clk 0:03:01.3]} 10... O-O {[%clk 0:02:52.1]} 11. a4 {[%clk
0:02:59.9]} 11... b6 {[%clk 0:02:49.3]} 12. Be3 {[%clk 0:02:55.7]} 12... Nd4
{[%clk 0:02:41.1]} 13. Nxd4 {[%clk 0:02:35.4]} 13... cxd4 {[%clk 0:02:40.7]} 14.
Bf4 {[%clk 0:02:36.1]} 14... Be6 {[%clk 0:02:37]} 15. Qd2 {[%clk 0:02:35.6]}
15... Bd5 {[%clk 0:02:36.7]} 16. Bh6 {[%clk 0:02:35]} 16... f5 {[%clk
0:02:29.5]} 17. exf6 {[%clk 0:02:32.1]} 17... exf6 {[%clk 0:02:28.8]} 18. Bxg7
{[%clk 0:02:31.7]} 18... Kxg7 {[%clk 0:02:28.6]} 19. b3 {[%clk 0:02:30.4]} 19...
Qd7 {[%clk 0:02:27.4]} 20. Ng3 {[%clk 0:02:29.9]} 20... Rae8 {[%clk 0:02:27.1]}
21. f3 {[%clk 0:02:28.6]} 21... Qd6 {[%clk 0:02:21]} 22. Rxe8 {[%clk 0:02:27.7]}
22... Rxe8 {[%clk 0:02:20.3]} 23. Re1 {[%clk 0:02:28.3]} 23... Re5 {[%clk
0:02:11.2]} 24. Rxe5 {[%clk 0:02:26.6]} 24... Qxe5 {[%clk 0:02:11.2]} 25. Qe2
{[%clk 0:02:26.4]} 25... Qxe2 {[%clk 0:01:47.6]} 26. Nxe2 {[%clk 0:02:27.3]}
26... c5 {[%clk 0:01:47.5]} 27. Kf2 {[%clk 0:02:25.7]} 27... f5 {[%clk
0:01:46.1]} 28. Nf4 {[%clk 0:02:25]} 28... Bf7 {[%clk 0:01:45.9]} 29. h4 {[%clk
0:02:24]} 29... h6 {[%clk 0:01:45.9]} 30. g3 {[%clk 0:02:20.9]} 30... g5 {[%clk
0:01:46.3]} 31. hxg5 {[%clk 0:02:21]} 31... hxg5 {[%clk 0:01:47.2]} 32. Nh3
{[%clk 0:02:11.7]} 32... Kf6 {[%clk 0:01:43.2]} 33. Ng1 {[%clk 0:02:09]} 33...
a6 {[%clk 0:01:37.8]} 34. Ne2 {[%clk 0:02:05]} 34... b5 {[%clk 0:01:30.2]} 35.
axb5 {[%clk 0:02:04.9]} 35... axb5 {[%clk 0:01:31.1]} 36. b4 {[%clk 0:02:04.8]}
36... cxb4 {[%clk 0:01:10.4]} 37. Nxd4 {[%clk 0:02:03.8]} 37... Be8 {[%clk
0:01:10.6]} 38. Ke3 {[%clk 0:02:01.3]} 38... Bd7 {[%clk 0:01:10.3]} 39. f4
{[%clk 0:01:50.5]} 39... g4 {[%clk 0:01:10]} 40. Ne2 {[%clk 0:01:48]} 40... Ke6
{[%clk 0:01:07]} 41. Kd4 {[%clk 0:01:46.9]} 41... Kd6 {[%clk 0:01:07.4]} 42. Nc1
{[%clk 0:01:46.9]} 42... Be6 {[%clk 0:01:04.5]} 43. Nb3 {[%clk 0:01:42.5]} 43...
Bd5 {[%clk 0:00:54.8]} 44. Nc5 {[%clk 0:01:33.5]} 44... Bf3 {[%clk 0:00:49.3]}
45. Na6 {[%clk 0:01:31.5]} 45... b3 {[%clk 0:00:42.5]} 46. cxb3 {[%clk
0:01:30.3]} 46... Be2 {[%clk 0:00:43.4]} 47. b4 {[%clk 0:01:26.4]} 47... Bf3
{[%clk 0:00:44.3]} 48. Nc5 {[%clk 0:01:25.5]} 48... Bd5 {[%clk 0:00:42.6]} 49.
Nd7 {[%clk 0:01:24.8]} 49... Bc6 {[%clk 0:00:38.2]} 50. Ne5 {[%clk 0:01:22.3]}
50... Be8 {[%clk 0:00:38.3]} 51. Ke3 {[%clk 0:01:04.8]} 51... Ke6 {[%clk
0:00:36.5]} 52. d4 {[%clk 0:01:03]} 52... Kd5 {[%clk 0:00:37.4]} 53. Kd3 {[%clk
0:00:59.4]} 53... Bh5 {[%clk 0:00:28]} 54. Nd7 {[%clk 0:00:56.7]} 54... Bf7
{[%clk 0:00:26.4]} 55. Nc5 {[%clk 0:00:40.7]} 55... Be8 {[%clk 0:00:25.8]} 56.
Nb3 {[%clk 0:00:38.4]} 56... Bf7 {[%clk 0:00:24.8]} 57. Nd2 {[%clk 0:00:38.3]}
57... Kd6 {[%clk 0:00:24.6]} 58. Nb1 {[%clk 0:00:38.2]} 58... Bc4+ {[%clk
0:00:22.8]} 59. Ke3 {[%clk 0:00:37.1]} 59... Kd5 {[%clk 0:00:22.1]} 60. Nc3+
{[%clk 0:00:30]} 60... Kc6 {[%clk 0:00:22]} 61. d5+ {[%clk 0:00:27.5]} 61...
Bxd5 {[%clk 0:00:22.3]} 62. Kd4 {[%clk 0:00:27.6]} 62... Be6 {[%clk 0:00:22.9]}
63. Ke5 {[%clk 0:00:27.4]} 63... Bc8 {[%clk 0:00:23.8]} 64. Nd1 {[%clk
0:00:26.5]} 64... Kb6 {[%clk 0:00:20.3]} 65. Ne3 {[%clk 0:00:26.4]} 65... Bb7
{[%clk 0:00:20.9]} 66. Nxf5 {[%clk 0:00:26.1]} 66... Bf3 {[%clk 0:00:21.8]} 67.
Ne3 {[%clk 0:00:25.8]} 1-0